Workbook

Sheet 封面
A4: 2025年阳江滨海新区（阳江高新区）财政预算调整方案表格
A5: 附件1： 2025年阳江滨海新区（阳江高新区）一般公共预算调整方案表格
A6: 附件2： 2025年阳江滨海新区（阳江高新区）政府性基金预算调整方案表格

Sheet 高新区一般公共预算收支调整表
A1: 表一
A2: 2025年阳江滨海新区（阳江高新区）一般公共预算收支调整表
I3: 单位：万元
A4: 项 目 | B4: 2025年预算 | C4: 预算调整 | F4: 项 目 | G4: 2025年预算 | H4: 预算调整
C5: 调整变动数 | D5: 调整后金额 （可比口径） | E5: 调整后金额 （自然口径） | H5: 调整变动数 | I5: 调整后金额
A6: 一、税收收入 | B6: =SUM(B7:B19) -> 31,778 | C6: =SUM(C7:C20) -> 10,101 | D6: =SUM(D7:D20) -> 28,576 | E6: =SUM(B6:C6) -> 41,879 | F6: 一、一般公共服务支出 | G6: 13,354 | H6: -817 | I6: =SUM(G6:H6) -> 12,537
A7: 增值税 | B7: 11,392 | C7: 5,834 | D7: 9,570 | E7: 17,226 | F7: 二、国防支出 | G7: 75 | I7: 75
A8: 企业所得税 | B8: 6,000 | C8: 5,448 | D8: 6,360 | E8: 11,448 | F8: 三、公共安全支出 | G8: 2,330 | H8: -360 | I8: 1,970
A9: 个人所得税 | B9: 480 | C9: 548 | D9: 571 | E9: 1,028 | F9: 四、教育支出 | G9: 13,828 | H9: -693 | I9: 13,135
A10: 资源税 | B10: 0 | E10: 0 | F10: 五、科学技术支出 | G10: 959 | H10: 1,455 | I10: 2,414
A11: 城市维护建设税 | B11: 2,640 | C11: -660 | D11: 1,980 | E11: 1,980 | F11: 六、文化旅游体育与传媒支出 | G11: 580 | H11: 12 | I11: 592
A12: 房产税 | B12: 4,680 | C12: -1,428 | D12: 3,252 | E12: 3,252 | F12: 七、社会保障和就业支出 | G12: 14,679 | H12: -57 | I12: 14,622
A13: 印花税 | B13: 3,400 | C13: 88 | D13: 3,488 | E13: 3,488 | F13: 八、卫生健康支出 | G13: 10,681 | H13: -144 | I13: 10,537
A14: 城镇土地使用税 | B14: 800 | C14: -28 | D14: 772 | E14: 772 | F14: 九、节能环保支出 | G14: 4,270 | H14: 107 | I14: 4,377
A15: 土地增值税 | B15: 80 | C15: 149 | D15: 127 | E15: 229 | F15: 十、城乡社区支出 | G15: 4,906 | H15: -1,943 | I15: 2,963
A16: 车船税 | B16: 6 | C16: -2 | D16: 4 | E16: 4 | F16: 十一、农林水支出 | G16: 6,784 | H16: -205 | I16: 6,579
A17: 耕地占用税 | B17: 1,680 | C17: 148 | D17: 1,828 | E17: 1,828 | F17: 十二、交通运输支出 | G17: 257 | I17: 257
A18: 契税 | B18: 400 | C18: -46 | D18: 354 | E18: 354 | F18: 十三、资源勘探工业信息等支出 | G18: 10,373 | H18: -2,670 | I18: 7,703
A19: 环境保护税 | B19: 220 | C19: 50 | D19: 270 | E19: 270 | F19: 十四、商业服务业等支出 | G19: 180 | H19: -80 | I19: 100
A20: 其他税收收入 | B20: 0 | E20: 0 | F20: 十五、金融支出 | I20: 0
A21: 二、非税收入 | B21: =SUM(B22:B27) -> 4,040 | C21: =SUM(C22:C27) -> -1,498 | D21: =SUM(D22:D27) -> 2,542 | E21: 2,542 | F21: 十六、自然资源海洋气象等支出 | G21: 377 | H21: -54 | I21: 323
A22: 专项收入 | B22: 2,940 | C22: -1,498 | D22: 1,442 | E22: 1,442 | F22: 十七、住房保障支出 | G22: 2,197 | I22: 2,197
A23: 行政事业性收费收入 | B23: 300 | D23: 300 | E23: 300 | F23: 十八、粮油物资储备支出 | G23: 200 | I23: 200
A24: 罚没收入 | B24: 500 | D24: 500 | E24: 500 | F24: 十九、灾害防治及应急管理支出 | G24: 3,256 | H24: -377 | I24: 2,879
A25: 国有资本经营收入 | B25: 0 | E25: 0 | F25: 二十、预备费 | G25: 1,316 | I25: 1,316
A26: 国有资源（资产）有偿使用收入 | B26: 300 | D26: 300 | E26: 300 | F26: 二十一、其他支出 | G26: 23,393 | H26: 1,550 | I26: 24,943
A27: 其他收入 | E27: 0 | F27: 二十二、债务付息支出 | G27: 2,895 | H27: -289 | I27: 2,606
A28: 一般公共预算收入合计 | B28: =SUM(B6,B21) -> 35,818 | C28: =SUM(C6,C21) -> 8,603 | D28: =SUM(D6,D21) -> 31,118 | E28: =SUM(E6,E21) -> 44,421 | F28: 一般公共预算支出合计 | G28: =SUM(G6:G27) -> 116,890 | H28: -4,565 | I28: 112,325
A29: 转移性收入合计 | B29: =SUM(B30:B34) -> 84,082 | C29: =SUM(C30:C34) -> -1,922 | D29: =SUM(D30:D34) -> 81,374 | E29: =SUM(E30:E34) -> 82,160 | F29: 转移性支出合计 | G29: =SUM(G30:G32) -> 3,010 | H29: 11,246 | I29: 14,256
A30: 上级补助收入 | B30: 31,782 | D30: 31,782 | E30: =SUM(B30:C30) -> 31,782 | F30: 补助下级支出 | I30: =SUM(G30:H30) -> 0
A31: 下级上解收入 | E31: 0 | F31: 上解支出 | G31: 1,557 | H31: 11,156 | I31: 12,713
A32: 上年结转收入 | B32: 27,430 | C32: 1,550 | D32: 28,194 | E32: 28,980 | F32: 债务还本支出 | G32: 1,453 | H32: 90 | I32: 1,543
A33: 调入资金 | B33: 24,870 | C33: -3,472 | D33: 21,398 | E33: 21,398
A34: 债务转贷收入 | E34: 0
A35: 收 入 总 计 | B35: =SUM(B28:B29) -> 119,900 | C35: 6,681 | D35: 112,492 | E35: 126,581 | F35: 支 出 总 计 | G35: 119,900 | H35: 6,681 | I35: 126,581

Sheet 高新区一般公共预算调整项目表
A1: 表二
A2: 2025年阳江滨海新区（阳江高新区）一般公共预算调整项目表
F3: 单位：万元
A4: 序号 | B4: 项目名称 | C4: 2025年预算 | D4: 调整变动数 | E4: 预算调整后金额 | F4: 备注
A5: 一 | B5: 调整安排项目小计 | C5: =SUM(C98,C6,C117) -> 57,879 | D5: =SUM(D98,D6,D117) -> 6,681 | E5: =SUM(E98,E6,E117) -> 63,774 | F5: =SUM(F98,F6) -> 0
A6: （一） | B6: 调减支出安排项目 | C6: =SUM(C7:C97) -> 24,857 | D6: =SUM(D7:D97) -> -8,851 | E6: =SUM(E7:E97) -> 16,006
A7: 1 | B7: 十五五规划、十五五产业规划编制费 | C7: 100 | D7: =E7-C7 -> -20 | E7: 80 | F7: 经济发展和投资促进局
A8: 2 | B8: 促进经济高质量发展专项资金（工业园区高质量发展） | C8: 670 | D8: -670 | E8: 0 | F8: 经济发展和投资促进局
A9: 3 | B9: 产业转移园扶持企业发展专项资金 | C9: 2,500 | D9: -1,000 | E9: 1,500 | F9: 经济发展和投资促进局
A10: 4 | B10: 园区基础设施投入 | C10: 2,500 | D10: -1,000 | E10: 1,500 | F10: 经济发展和投资促进局
A11: 5 | B11: 码头开放开办费用 | C11: 180 | D11: -80 | E11: 100 | F11: 经济发展和投资促进局
A12: 6 | B12: 企业研发平台补助 | C12: 145 | D12: -145 | E12: 0 | F12: 科技创新局
A13: 7 | B13: 高新技术企业奖励经费 | C13: 380 | D13: -380 | E13: 0 | F13: 科技创新局
A14: 8 | B14: 高新公司运营经费 | C14: 865 | D14: -521 | E14: 344 | F14: 高新公司
A15: 9 | B15: 支付代支基础设施建设资金收益 | C15: 650 | D15: -450 | E15: 200 | F15: 恒新公司
A16: 10 | B16: 高汇公司注册资本金 | C16: 1,000 | D16: -900 | E16: 100 | F16: 高汇公司
A17: 11 | B17: 财政业务培训经费 | C17: 3 | D17: -1 | E17: 2 | F17: 财政和国有资产管理局
A18: 12 | B18: 会计监督检查经费 | C18: 10 | D18: -6 | E18: 4 | F18: 财政和国有资产管理局
A19: 13 | B19: 绩效管理经费 | C19: 110 | D19: -41 | E19: 69 | F19: 财政和国有资产管理局
A20: 14 | B20: 财政委托业务经费 | C20: 350 | D20: -50 | E20: 300 | F20: 财政和国有资产管理局
A21: 15 | B21: 新办公大楼租金 | C21: 30 | D21: -29 | E21: 1 | F21: 建设管理和综合执法局
A22: 16 | B22: 农村公路日常养护 | C22: 93 | D22: -53 | E22: 40 | F22: 建设管理和综合执法局
A23: 17 | B23: 阳江滨海新区（阳江高新区）禽畜养殖污染防治规划编制项目 | C23: 10 | D23: -10 | E23: 0 | F23: 市生态环境局高新分局
A24: 18 | B24: 编制区“十四五”主要污染物总量减排工作方案经费 | C24: 25 | D24: -25 | E24: 0 | F24: 市生态环境局高新分局
A25: 19 | B25: 2025年度村级生态环境监督工作经费 | C25: 15 | D25: -2 | E25: 13 | F25: 市生态环境局高新分局
A26: 20 | B26: 生态环境常规性监测经费 | C26: 118 | D26: -49 | E26: 69 | F26: 市生态环境局高新分局
A27: 21 | B27: 政策性农业保险（淡水水产品养殖保险）保费补贴 | C27: 25 | D27: -5 | E27: 20 | F27: 社会事务局
A28: 22 | B28: 海堤、水库安全运行管理经费 | C28: 28 | D28: -8 | E28: 20 | F28: 社会事务局
A29: 23 | B29: 日常运转经费 | C29: 215 | D29: -54 | E29: 161 | F29: 阳江市自然资源局高新分局
A30: 24 | B30: 高新区“房地一体”农村不动产登记发证经费 | C30: 151 | D30: -151 | E30: 0 | F30: 阳江市自然资源局高新分局
A31: 25 | B31: 镇人大经费 | C31: 45 | D31: -5 | E31: 40 | F31: 平冈镇人民政府
A32: 26 | B32: 平冈镇人民政府机动经费 | C32: 304 | D32: -15 | E32: 289 | F32: 平冈镇人民政府
A33: 27 | B33: 平冈镇村（居）民小组党建阵地建设经费 | C33: 104 | D33: -24 | E33: 80 | F33: 平冈镇人民政府
A34: 28 | B34: 社工站(点）运营经费 | C34: 76 | D34: -16 | E34: 60 | F34: 平冈镇人民政府
A35: 29 | B35: 平冈镇九姜围工程管理所经费 | C35: 20 | D35: -5 | E35: 15 | F35: 平冈镇人民政府
A36: 30 | B36: 机关事务经费 | C36: 750 | D36: -300 | E36: 450 | F36: 党政综合办公室
A37: 31 | B37: 法制办业务费 | C37: 2 | D37: -2 | E37: 0 | F37: 党政综合办公室
A38: 32 | B38: 区管委会大院（含办公楼）及创新交流中心设备设施维修经费 | C38: 30 | D38: -10 | E38: 20 | F38: 党政综合办公室
A39: 33 | B39: 2024年全区干部职工体检经费 | C39: 123 | D39: -17 | E39: 106 | F39: 党政综合办公室
A40: 34 | B40: 重大节日慰问经费 | C40: 15 | D40: -3 | E40: 12 | F40: 党政综合办公室
A41: 35 | B41: 机关大院安装监控、机关饭堂优化改造、机关周转住房建设等项目经费 | C41: 48 | D41: -18 | E41: 30 | F41: 党政综合办公室
A42: 36 | B42: 公务用车购置费用 | C42: 21 | D42: -21 | E42: 0 | F42: 党政综合办公室
A43: 37 | B43: 拔尖人才管理配套专项经费 | C43: 35 | D43: -9 | E43: 26 | F43: 党建工作办公室
A44: 38 | B44: 全区干部培训经费 | C44: 64 | D44: -24 | E44: 40 | F44: 党建工作办公室
A45: 39 | B45: 城乡医疗保险宣传工作经费 | C45: 8 | D45: -2 | E45: 6 | F45: 党建工作办公室
A46: 40 | B46: 公务员、事业单位招考经费 | C46: 20 | D46: -5 | E46: 15 | F46: 党建工作办公室
A47: 41 | B47: 警务辅助力量人员经费 | C47: 521 | D47: -100 | E47: 421 | F47: 市公安局高新分局
A48: 42 | B48: 高新区社会治安视频监控建设经费 | C48: 232 | D48: -132 | E48: 100 | F48: 市公安局高新分局
A49: 43 | B49: 升旗广场改造工程经费 | C49: 6 | D49: -6 | E49: 0 | F49: 市公安局高新分局
A50: 44 | B50: 阳江滨海新区（阳江高新区）“亮灯工程”建设项目 | C50: 15 | D50: -15 | F50: 市公安局高新分局
A51: 45 | B51: 阳江滨海新区（阳江高新区）社会治安视频监控系统建设项目 | C51: 49 | D51: -24 | E51: 25 | F51: 市公安局高新分局
A52: 46 | B52: 阳江高新区户籍档案建设项目 | C52: 46 | D52: -46 | E52: 0 | F52: 市公安局高新分局
A53: 47 | B53: 边检站包干经费 | C53: 72 | D53: -4 | E53: 68 | F53: 边检站
A54: 48 | B54: 郊区交警大队工作经费 | C54: 8 | D54: -4 | E54: 4 | F54: 郊区交警大队
A55: 49 | B55: 消防战勤保障大队经费 | C55: 1,918 | D55: -12 | E55: 1,906 | F55: 阳江市公安消防支队战勤保障大队
A56: 50 | B56: 特种装备维护保养经费 | C56: 99 | D56: -5 | E56: 94 | F56: 阳江市公安消防支队战勤保障大队
A57: 51 | B57: 特种装备费用 | C57: 500 | D57: -200 | E57: 300 | F57: 阳江市公安消防支队战勤保障大队
A58: 52 | B58: 阳江港水陆消防站经费 | C58: 390 | D58: -190 | E58: 200 | F58: 阳江市公安消防支队战勤保障大队
A59: 53 | B59: 三防办应急抢险救援综合演练经费 | C59: 10 | D59: -5 | E59: 5 | F59: 应急管理局
A60: 54 | B60: 森林火灾应急处置演练经费 | C60: 10 | D60: -5 | E60: 5 | F60: 应急管理局
A61: 55 | B61: 队员服装费 | C61: 29 | D61: -9 | E61: 20 | F61: 建设管理和综合执法局
A62: 56 | B62: 执法设备购置费 | C62: 11 | D62: -5 | E62: 6 | F62: 建设管理和综合执法局
A63: 57 | B63: 生活垃圾焚烧处置费用（垃圾焚烧单位收取高新区的垃圾处理费） | C63: 166 | D63: -26 | E63: 140 | F63: 建设管理和综合执法局
A64: 58 | B64: 购置农村保洁手拉车费用、购置农村保洁垃圾桶及清扫用具费用、统一农村保洁员服装 | C64: 12 | D64: -6 | E64: 6 | F64: 建设管理和综合执法局
A65: 59 | B65: 农村生活垃圾设施维护和卫生应急处理 | C65: 12 | D65: -2 | E65: 10 | F65: 建设管理和综合执法局
A66: 60 | B66: 城乡居民医疗保险 | C66: 595 | D66: -13 | E66: 582 | F66: 市社会保险基金管理局高新分局
A67: 61 | B67: 城乡居民养老保险基础养老金 | C67: 399 | D67: -9 | E67: 390 | F67: 市社会保险基金管理局高新分局
A68: 62 | B68: 包干经费 | C68: 25 | D68: -2 | E68: 23 | F68: 市社会保险基金管理局高新分局
A69: 63 | B69: 业务费 | C69: 24 | D69: -2 | E69: 22 | F69: 市市场监督管理局高新分局
A70: 64 | B70: 知识产权工作经费 | C70: 10 | D70: -1 | E70: 9 | F70: 市市场监督管理局高新分局
A71: 65 | B71: 农村最低生活保障 | C71: 540 | D71: =E71-C71 -> -100 | E71: 440 | F71: 社会事务局
A72: 66 | B72: 城镇特困人员救助供养（五保） | C72: 23 | D72: -5 | E72: 18 | F72: 社会事务局
A73: 67 | B73: 重度残疾人护理补贴 | C73: 158 | D73: -50 | E73: 108 | F73: 社会事务局
A74: 68 | B74: 困难残疾人生活补贴 | C74: 48 | D74: -20 | E74: 28 | F74: 社会事务局
A75: 69 | B75: 购买社会服务（开展婚姻登记工作） | C75: 20 | D75: -3 | E75: 17 | F75: 社会事务局
A76: 70 | B76: 阳江高新技术产业开发区人民医院二期住院大楼建设项目款 | C76: 50 | D76: -25 | E76: 25 | F76: 社会事务局
A77: 71 | B77: 农村妇女“两癌”经费 | C77: 10 | D77: -5 | E77: 5 | F77: 社会事务局
A78: 72 | B78: 平冈镇中心卫生院日常运营经费 | C78: 200 | D78: -100 | E78: 100 | F78: 社会事务局
A79: 73 | B79: 一村一法律顾问工作经费 | C79: 9 | D79: -1 | E79: 8 | F79: 社会事务局
A80: 74 | B80: 执法执勤用车购置 | C80: 20 | D80: -20 | E80: 0 | F80: 社会事务局
A81: 75 | B81: 区治安联防经费 | C81: 50 | D81: -3 | E81: 47 | F81: 社会事务局
A82: 76 | B82: 教研经费 | C82: 24 | D82: -14 | E82: 10 | F82: 社会事务局
A83: 77 | B83: 中小学校、幼儿园教师培训费 | C83: 128 | D83: -98 | E83: 30 | F83: 社会事务局
A84: 78 | B84: 全区各中小学、幼儿园工程费用 | C84: 600 | D84: -400 | E84: 200 | F84: 社会事务局
A85: 79 | B85: 学校安全建设经费 | C85: 211 | D85: -20 | E85: 191 | F85: 社会事务局
A86: 80 | B86: 学前教育发展专项资金 | C86: 5 | D86: -5 | E86: 0 | F86: 社会事务局
A87: 81 | B87: 营养改善 | C87: 14 | D87: -8 | E87: 6 | F87: 社会事务局
A88: 82 | B88: 教学设备设施添置经费 | C88: 100 | D88: -20 | E88: 80 | F88: 社会事务局
A89: 83 | B89: 慰问经费 | C89: 22 | D89: -10 | E89: 12 | F89: 社会事务局
A90: 84 | B90: 保教费 | C90: 273 | D90: -113 | E90: 160 | F90: 社会事务局
A91: 85 | B91: 督导经费 | C91: 10 | D91: -5 | E91: 5 | F91: 社会事务局
A92: 86 | B92: 文化建设 | C92: 8 | D92: -3 | E92: 5 | F92: 社会事务局
A93: 87 | B93: 新闻出版经费 | C93: 7 | D93: -5 | E93: 2 | F93: 宣教文体卫事务中心
A94: 88 | B94: 扫黑除恶工作经费 | C94: 10 | D94: -5 | E94: 5 | F94: 管委会
A95: 89 | B95: 预留规范全区工资津补贴经费 | C95: 1,500 | D95: -500 | E95: 1,000 | F95: 管委会
A96: 90 | B96: 行政事业单位经费 | C96: 928 | D96: -76 | E96: 852 | F96: 行政事业单位
A97: 91 | B97: 债务付息支出 | C97: 2,895 | D97: -289 | E97: 2,606 | F97: 管委会
A98: （二） | B98: 新增支出安排项目 | C98: =SUM(C99:C116) -> 5,592 | D98: =SUM(D99:D116) -> 13,982 | E98: =SUM(E99:E116) -> 19,574 | F98: =SUM(F99:F114) -> 0
A99: 92 | B99: 购置科技综合楼配套资金 | D99: =E99-C99 -> 1,980 | E99: 1,980 | F99: 科技创新局
A100: 93 | B100: 税收征收经费 | C100: 2,150 | D100: 100 | E100: 2,250 | F100: 税务局
A101: 94 | B101: 档案归档整理经费 | C101: 20 | D101: 7 | E101: 27 | F101: 财政和国有资产管理局
A102: 95 | B102: 土地储备项目开发经费 | C102: 10 | D102: 21 | E102: 31 | F102: 财政和国有资产管理局
A103: 96 | B103: 2025年农村危房改造（5户） | C103: 0 | D103: 12 | E103: 12 | F103: 建设管理和综合执法局
A104: 97 | B104: 阳江滨海新区（阳江高新区）不明固体废物危险特性鉴别和环境损害鉴定评估报告编制服务 | C104: 0 | D104: 29 | E104: 29 | F104: 市生态环境局高新分局
A105: 98 | B105: 阳江滨海新区（阳江高新区）不明固体废物应急处置 | C105: 0 | D105: 154 | E105: 154 | F105: 市生态环境局高新分局
A106: 99 | B106: 其他污染防治经费 | C106: 45 | D106: 10 | E106: 55 | F106: 市生态环境局高新分局
A107: 100 | B107: 安全生产检查费用 | C107: 10 | D107: 5 | E107: 15 | F107: 建设管理和综合执法局
A108: 101 | B108: 区“三支一扶”大学生工作经费 | C108: 37 | D108: 7 | E108: 44 | F108: 党建工作办公室
A109: 102 | B109: 消防正规化建设经费 | C109: 80 | D109: 40 | E109: 120 | F109: 阳江市公安消防支队战勤保障大队
A110: 103 | B110: 死亡抚恤经费 | C110: 200 | D110: 50 | E110: 250 | F110: 社会事务局
A111: 104 | B111: 适龄女生HPV疫苗免费接种项目 | D111: 1 | E111: 1 | F111: 社会事务局
A112: 105 | B112: 全民健身活动工作经费 | C112: 30 | D112: 20 | E112: 50 | F112: 社会事务局
A113: 106 | B113: 2025年增加养老金 | D113: 100 | E113: 100 | F113: 行政事业单位
A114: 107 | B114: 2025年增加工资 | D114: 200 | E114: 200 | F114: 行政事业单位
A115: 108 | B115: 上解支出 | C115: 1,557 | D115: 11,156 | E115: 12,713
A116: 109 | B116: 债务还本支出 | C116: 1,453 | D116: 90 | E116: 1,543
A117: （三） | B117: 上年结转资金增加项目 | C117: 27,430 | D117: 1,550 | E117: 28,194 | F117: 上年结余资金收入调整。

Sheet 高新区政府性基金预算收支调整表
A1: 表三
A2: 2025年阳江滨海新区（阳江高新区）政府性基金预算收支调整表
H3: 单位：万元
A4: 项目 | B4: 2025年预算 | C4: 预算调整 | E4: 项目 | F4: 2025年预算 | G4: 预算调整
C5: 调整变动数 | D5: 调整后金额 | G5: 调整变动数 | H5: 调整后金额
A6: 一、政府性基金本级收入 | D6: =SUM(B6:C6) -> 0 | E6: 一、政府性基金本级支出
A7: （一）国有土地使用权出让收入 | B7: 48,500 | C7: -3,472 | D7: 45,028 | E7: （一）文化旅游体育与传媒支出 | H7: =SUM(F7:G7) -> 0
A8: （二）农业土地开发资金收入 | B8: 1,700 | D8: 1,700 | E8: （二）农林水支出 | H8: 0
A9: （三）城市基础设施配套费收入 | D9: 0 | E9: （三）城乡社区支出 | F9: 20,103 | G9: -34 | H9: 20,069
A10: （四）污水处理费收入 | B10: 700 | D10: 700 | E10: （四）其他支出 | F10: 64,816 | G10: -10,040 | H10: 54,776
A11: （五）彩票公益金收入 | D11: 0 | E11: （五）债务付息支出 | F11: 6,575 | G11: 34 | H11: 6,609
A14: 政府性基金本级收入小计 | B14: =SUM(B6:B11) -> 50,900 | C14: =SUM(C6:C11) -> -3,472 | D14: =SUM(D6:D11) -> 47,428 | E14: 政府性基金本级支出小计 | F14: =SUM(F7:F11) -> 91,494 | G14: -10,040 | H14: 81,454
A15: 二、上级补助收入 | B15: 20 | D15: =SUM(B15:C15) -> 20 | E15: 二、补助下级支出 | H15: =SUM(F15:G15) -> 0
A16: 三、下级上解收入 | D16: 0 | E16: 三、上解支出 | H16: 0
A17: 四、债务转贷收入 | B17: 50,000 | C17: -4,600 | D17: 45,400 | E17: 四、调出资金 | F17: 24,800 | G17: -3,472 | H17: 21,328
A18: 五、调入资金 | D18: 0 | E18: 五、债务转贷支出 | H18: 0
A19: 六、上年结转收入 | B19: 15,374 | C19: -5,440 | D19: 9,934 | E19: 六、债务还本支出 | H19: 0
A20: 收 入 合 计 | B20: =SUM(B14:B19) -> 116,294 | C20: =SUM(C14:C19) -> -13,512 | D20: =SUM(D14:D19) -> 102,782 | E20: 支 出 合 计 | F20: =SUM(F6,F14:F19) -> 116,294 | G20: -13,512 | H20: 102,782

Sheet 高新区政府性基金预算调整项目表
A1: 表四
A2: 2025年阳江滨海新区（阳江高新区）政府性基金预算调整项目表
F3: 单位：万元
A4: 序号 | B4: 项目名称 | C4: 2025年预算 | D4: 调整变动数 | E4: 预算调整后金额 | F4: 备注
B5: 政府性基金预算调整项目支出合计 | C5: =SUM(C6,C7,C22,C23,C26,C27,) -> 116,294 | D5: =SUM(D6,D7,D22,D23,D26,D27,) -> -13,512 | E5: =SUM(E6,E7,E22,E23,E26,E27,) -> 102,782
A6: 一 | B6: 污水处理费安排的支出 | C6: 1,278 | D6: =E6-C6 -> 0 | E6: 1,278
A7: 二 | B7: 国有土地使用权出让收入安排的支出 | C7: =SUM(C8:C21) -> 48,500 | D7: =SUM(D8:D21) -> -3,472 | E7: =SUM(E8:E21) -> 45,028
A8: （一） | B8: （一）征地和拆迁补偿支出 | C8: 6,000 | D8: -2,259 | E8: 3,741
A9: （二） | B9: （二）土地开发支出 | C9: 6,584 | D9: 4,716 | E9: 11,300
A10: （三） | B10: （三）城市建设支出 | C10: 500 | D10: -250 | E10: 250
A11: （四） | B11: （四）农村基础设施建设支出 | C11: 200 | D11: 50 | E11: 250
A12: （五） | B12: （五）补助被征地农民支出 | C12: 600 | D12: -300 | E12: 300
A13: （六） | B13: （六）土地出让业务支出 | C13: 200 | D13: 200 | E13: 400
A14: （七） | B14: （七）支付破产或改制企业职工安置费 | C14: 811 | D14: -811 | E14: 0
A15: （八） | B15: （八）农业生产发展支出 | C15: 600 | D15: -400 | E15: 200
A16: （九） | B16: （九）农村社会事业支出 | C16: 540 | D16: -340 | E16: 200
A17: （十） | B17: （十）农业农村生态环境支出 | C17: 400 | D17: -100 | E17: 300
A18: （十一） | B18: （十一）其他国有土地使用权出让金支出 | C18: 690 | D18: -540 | E18: 150
A19: （十二） | B19: （十二）债务付息支出 | C19: 6,575 | D19: 34 | E19: 6,609
A20: （十三） | B20: （十三）调出资金 | C20: 24,800 | D20: -3,472 | E20: 21,328
A21: （十四） | B21: （十四）上年结转收入安排的项目支出 | D21: 0
A22: 三 | B22: 农业土地开发资金安排的支出 | C22: 1,700 | D22: 0 | E22: 1,700
A23: 四 | B23: 彩票公益金安排的支出 | C23: =SUM(C24:C25) -> 172 | D23: 0 | E23: =SUM(E24:E25) -> 172
A24: （一） | B24: 福利彩票公益金支出 | C24: 150 | D24: 0 | E24: 150
A25: （二） | B25: 残疾人事业的福利彩票公益金支出 | C25: 22 | D25: 0 | E25: 22
A26: 五 | B26: 其他地方自行试点项目收益专项债券收入安排的支出 | C26: 64,644 | D26: -12,040 | E26: 52,604 | F26: 阳江高新区港口工业园AB区基础设施项目6000万元、阳江国际风电产业城基础设施及配套建设工程（一期）项目1000万元、阳江高新区工业园基础设施及配套建设工程1000万元、阳江高新区工业园基础设施及配套建设工程（二期）3000万元、珠海（阳江）合作共建园区金港大道市政配套工程5000万元、阳江高新区漠南中学综合楼、宿舍楼建设工程1000万元。
A27: 六 | B27: 其他政府性基金债务收入安排的支出 | D27: 2,000 | E27: 2,000 | F27: 珠海（阳江）合作共建园区海港大道等11条道路及次墩河排渠工程1000万元、珠海（阳江）合作共建园A区风电装备制造标准厂房二期工程1000万元。
